bitfinex/quotes_ETHUSD_20220305
["timestamp","ask_amount","ask_price","bid_price","bid_amount"]
[1646524090611,0.00156744,2662.3,2661.5,1.8876]
[1646524090811,0.00156744,2662.3,2661.3,1.7277]
[1646524091011,0.00313832,2662.2,2661.3,0.74025747]
[1646524091213,3.50313832,2662.2,2661.3,0.74025747]
[1646524091410,3.50313832,2662.2,2661.3,0.55255747]
[1646524091809,3.50313832,2662.2,2661.4,1.14601058]
[1646524091810,0.86603529,2662.0,2661.4,1.14601058]
[1646524092014,0.00313827,2662.2,2661.5,0.93934]
[1646524092910,0.00156744,2662.3,2661.5,0.93934]
[1646524093110,1.54166845,2662.3,2661.5,0.93934]
[1646524093311,0.0031445,2662.2,2661.5,0.93934]
[1646524094253,0.00156744,2662.3,2661.5,0.93934]
[1646524094455,0.0031509,2662.2,2661.5,0.93934]
[1646524094759,0.8989843,2662.2,2661.5,0.93934]
[1646524095356,0.8958334,2662.2,2661.5,0.93934]
[1646524095559,0.0031509,2662.2,2661.5,0.93934]
[1646524096558,0.00156744,2662.3,2661.5,0.93934]
[1646524096759,0.00156744,2662.3,2662.0,1.13894994]
[1646524096760,0.00315027,2662.2,2662.0,1.13894994]
[1646524097162,0.00315027,2662.2,2662.0,2.07811994]
[1646524097861,0.00156744,2662.6,2662.0,2.07811994]
[1646524098109,0.00315037,2662.2,2662.0,3.28971994]
[1646524098307,0.00315037,2662.2,2662.1,0.96990256]
[1646524099111,1.17246744,2662.7,2662.1,0.96990256]
[1646524099307,0.00314942,2662.3,2662.1,0.96990256]
[1646524100209,0.00156744,2662.6,2662.1,0.96990256]
[1646524100409,1.1709,2662.7,2662.0,3.72617189]
[1646524101514,1.1709,2662.7,2662.3,1.22924574]
[1646524101753,0.00314882,2662.5,2662.3,1.22924574]
[1646524102654,0.00156744,2662.8,2662.0,2.51457189]
[1646524102856,0.0031489,2662.5,2662.0,0.57540189]
[1646524103053,0.0031489,2662.5,2662.0,1.57540189]
[1646524103455,0.0031489,2662.5,2662.0,0.57540189]
[1646524103756,0.92217811,2662.3,2662.0,0.57540189]
[1646524103955,0.92217811,2662.3,2661.7,0.1877]
[1646524104560,0.92109767,2662.3,2661.7,0.1877]
[1646524105529,0.00314918,2662.2,2661.7,0.1877]
[1646524106134,3.5,2662.2,2661.7,0.1877]
[1646524106534,3.50314913,2662.2,2661.7,0.1877]
[1646524106934,14.95314913,2662.2,2661.7,0.1877]
[1646524107134,14.95314913,2662.2,2661.4,0.01260051]
[1646524107434,0.99882363,2661.7,2661.0,4.59413595]
[1646524107639,0.99882363,2661.7,2661.4,0.01260047]
[1646524107640,3.5,2661.6,2661.4,0.01260047]
[1646524107832,0.99882363,2661.7,2661.4,0.01260047]
[1646524108637,0.99882363,2661.7,2661.0,5.04416789]
[1646524108835,0.99882363,2661.7,2661.0,5.05676912]
[1646524109035,3.5,2662.1,2661.0,5.05676912]
[1646524109461,1.13834891,2662.2,2661.0,5.05676912]
[1646524109861,1.1352,2662.2,2661.4,0.9393]
[1646524110061,1.13834894,2662.2,2661.6,0.9800489]
[1646524111066,1.1352,2662.2,2661.6,0.9800489]
[1646524111267,1.13834912,2662.2,2661.6,0.9800489]
[1646524112271,1.1352,2662.2,2661.6,0.9800489]
[1646524112471,1.13834912,2662.2,2661.6,0.9800489]
[1646524113528,1.1352,2662.2,2661.6,0.9800489]
[1646524113724,1.13834912,2662.2,2661.6,0.9800489]
[1646524114725,1.1352,2662.2,2661.6,0.9800489]
[1646524114926,1.13834911,2662.2,2661.6,0.9800489]
[1646524115728,1.1352,2662.2,2661.6,0.9800489]
[1646524116129,1.13834911,2662.2,2661.6,0.9800489]
[1646524116957,1.1352,2662.2,2661.6,0.9800489]
[1646524117357,1.13834911,2662.2,2661.6,0.9800489]
[1646524118258,1.1352,2662.2,2661.6,0.9800489]
[1646524118456,1.13834911,2662.2,2661.6,0.9800489]
[1646524119462,1.1352,2662.2,2661.6,0.9800489]
[1646524119659,1.13834911,2662.2,2661.6,0.9800489]
[1646524120509,1.1352,2662.2,2661.6,0.9800489]
[1646524120919,1.13834911,2662.2,2661.6,0.9800489]
[1646524121715,1.1352,2662.2,2661.6,0.9800489]
[1646524122117,1.13834911,2662.2,2661.6,0.9800489]
[1646524123015,1.1352,2662.2,2661.6,0.9800489]
[1646524123221,1.13834911,2662.2,2661.4,0.9519004]
[1646524123618,1.13834911,2662.2,2661.4,0.0126004]
[1646524124258,1.1352,2662.2,2661.3,1.87855]
[1646524124458,1.1352,2662.2,2661.4,0.98469154]
[1646524124459,1.13834905,2662.2,2661.4,0.98469154]
[1646524124662,1.13729741,2662.2,2661.4,0.98469154]
[1646524125361,5.0400493,2662.1,2661.4,0.98469154]
[1646524125564,3.5,2662.1,2661.4,0.98469154]
[1646524125768,3.5,2662.1,2661.3,2.89115064]
[1646524125965,3.5,2662.1,2661.3,1.89115064]
[1646524126165,1.13729741,2662.2,2661.3,2.89115064]
[1646524126667,1.13414836,2662.2,2661.3,1.87855]
[1646524126869,1.13729739,2662.2,2661.3,3.75905286]
[1646524127266,1.13729739,2662.2,2661.3,3.75293886]
[1646524127867,1.13414836,2662.2,2661.3,3.75293886]
[1646524128107,1.13729739,2662.2,2661.3,3.75293886]
[1646524129106,1.13414836,2662.2,2661.3,3.75293886]
[1646524129705,1.13414836,2662.2,2661.3,3.94063886]
[1646524130406,1.13414836,2662.2,2661.3,3.75293886]
[1646524132263,1.13414836,2662.2,2661.3,4.29293886]
[1646524132863,1.13761029,2662.2,2661.3,4.29293886]
[1646524133867,1.13414836,2662.2,2661.3,4.29293886]
[1646524134068,1.13761029,2662.2,2661.3,4.29293886]
[1646524135076,1.13414836,2662.2,2661.3,4.29293886]
[1646524135270,1.13761029,2662.2,2661.3,4.29293886]
[1646524136415,1.13748359,2662.2,2661.3,4.29293886]
[1646524136615,1.13748359,2662.2,2661.3,5.41884163]
[1646524137514,1.13414836,2662.2,2661.8,0.93921]
[1646524137718,0.00333523,2662.2,2661.8,0.93921]
[1646524138315,0.00333523,2662.2,2661.8,1.47921]
[1646524138719,0.00156744,2662.4,2662.1,1.0840755]
[1646524138915,0.00333539,2662.2,2662.1,1.0840755]
[1646524139768,0.00156744,2662.5,2662.1,1.0840755]
[1646524139967,1.54131684,2662.7,2662.1,1.0840755]
[1646524140167,0.00334393,2662.3,2662.1,1.0840755]
[1646524140969,0.00156744,2662.7,2662.1,1.0840755]
[1646524141273,0.0033439,2662.3,2662.1,2.3067755]
[1646524142268,0.00156744,2662.7,2662.1,2.3067755]
[1646524142467,0.0033439,2662.3,2662.1,2.3067755]
[1646524143415,0.00156744,2662.7,2662.1,2.3067755]
[1646524143615,0.00334331,2662.3,2662.1,2.3067755]
[1646524143921,0.00334331,2662.3,2662.1,1.2227]
[1646524144116,0.00334331,2662.3,2661.8,1.57319386]
[1646524144316,0.00334331,2662.3,2661.8,0.57319386]
[1646524144715,3.5,2662.5,2661.8,0.57319386]
[1646524145115,0.86973953,2662.3,2661.6,1.13543445]
[1646524145316,3.5,2662.2,2661.6,1.13543445]
[1646524145516,0.86973953,2662.3,2661.6,1.13543445]
[1646524145715,3.5,2662.2,2661.4,1.24022732]
[1646524145915,0.86973953,2662.3,2661.3,2.05913877]
[1646524146116,3.5,2662.2,2661.4,0.00672732]
[1646524146523,0.86973953,2662.3,2661.4,0.00672732]
[1646524146959,0.86973953,2662.3,2661.3,2.05913877]
[1646524147161,0.86973953,2662.3,2661.3,2.06634509]
[1646524147762,0.86973953,2662.3,2661.5,1.00060584]
[1646524148464,0.00346169,2662.2,2661.5,1.00060584]
[1646524149363,0.86973953,2662.3,2661.5,1.00060584]
[1646524149765,0.00346166,2662.2,2661.5,1.00060584]
[1646524150164,0.00346166,2662.2,2661.7,0.9393]
[1646524150711,0.86973953,2662.3,2661.7,0.9393]
[1646524150910,0.003334,2662.2,2661.7,0.9393]
[1646524151911,0.86973953,2662.3,2661.7,0.9393]
[1646524152112,0.003334,2662.2,2661.7,0.9393]
[1646524152713,0.003334,2662.2,2661.5,1.00060584]
[1646524153115,0.86973953,2662.3,2661.5,1.00060584]
[1646524153314,0.003334,2662.2,2661.5,1.00060584]
[1646524154015,0.82307353,2662.3,2661.5,1.00060584]
[1646524156061,0.00156744,2662.4,2661.5,1.00060584]
[1646524156262,1.54142406,2662.4,2661.7,0.9393]
[1646524156967,0.00166071,2662.3,2661.7,0.9393]
[1646524157164,0.00166071,2662.3,2662.2,0.88917148]
[1646524157766,1.5413047,2662.8,2662.2,0.88917148]
[1646524158021,0.00357519,2662.4,2662.2,0.88917148]
[1646524158211,0.00357519,2662.4,2662.2,0.88296294]
[1646524159013,1.53973726,2662.6,2662.2,0.88296294]
[1646524159215,0.00357515,2662.4,2662.1,0.93916]
[1646524160218,1.53972445,2662.7,2662.2,0.88827514]
[1646524160417,0.00357519,2662.4,2662.2,0.88827514]
[1646524161420,1.53968948,2662.7,2662.2,0.88827514]
[1646524161620,0.00357515,2662.4,2662.2,0.88827514]
[1646524162366,0.00357515,2662.4,2661.8,2.87831]
[1646524162562,5.03970185,2662.7,2661.8,2.87831]
[1646524162563,1.54126929,2662.6,2661.8,1.87831]
[1646524162761,1.54126929,2662.6,2661.8,2.87831]
[1646524162762,1.53970185,2662.6,2661.8,2.87831]
[1646524162964,0.00357515,2662.4,2661.7,0.55818276]
[1646524163172,3.02282402,2662.4,2661.5,0.0143057]
[1646524163370,1.11295754,2662.0,2661.5,0.0143057]
[1646524163568,3.5,2661.9,2661.5,0.0143057]
[1646524163969,3.5,2661.9,2661.4,0.98288595]
[1646524164168,3.5,2661.9,2661.3,0.1877]
[1646524164569,1.54017919,2661.8,2661.3,0.1877]
[1646524164771,3.5,2661.7,2661.3,0.1877]
[1646524165172,1.54034226,2661.6,2661.3,0.1877]
[1646524165370,1.54034226,2661.6,2660.3,2.94471072]
[1646524165371,0.90427995,2661.1,2660.4,1.13550367]
[1646524165922,3.5,2661.5,2660.4,1.13550367]
[1646524166119,1.54042352,2661.4,2660.4,1.13550367]
[1646524166421,3.5,2661.3,2660.7,0.00346639]
[1646524166820,3.5,2661.5,2660.7,0.00346639]
[1646524167020,1.08032551,2661.1,2660.7,0.00346639]
[1646524167221,3.5,2661.3,2660.7,0.00346639]
[1646524167421,3.5,2661.5,2660.4,2.13550367]
[1646524167728,3.5,2661.5,2660.8,0.00346636]
[1646524167923,3.5,2661.5,2660.9,0.93956]
[1646524168121,2.2646,2661.7,2660.9,0.93956]
[1646524168122,5.7646,2661.7,2660.9,0.93956]
[1646524168322,5.7646,2661.7,2661.2,1.21908755]
[1646524168323,2.2646,2661.7,2661.2,1.21908755]
[1646524168629,1.2398,2661.8,2661.2,1.21908755]
[1646524168823,6.59832197,2662.1,2661.2,1.21908755]
[1646524169021,7.78442197,2662.1,2661.2,1.22255363]
[1646524169260,4.28442197,2662.1,2661.2,1.22255363]
[1646524169665,4.28442197,2662.1,2661.3,0.93939]
[1646524170269,7.78442197,2662.1,2661.3,0.93939]
[1646524171169,4.28442197,2662.1,2661.3,0.93939]
[1646524171373,4.28442197,2662.1,2661.6,1.07229806]
[1646524172371,4.28442197,2662.1,2661.7,0.93929]
[1646524172774,0.0049534,2662.3,2661.7,0.93929]
[1646524173413,0.00156744,2662.3,2661.7,0.93929]
[1646524173613,0.00333593,2662.3,2662.0,1.00349306]
[1646524173811,0.00333593,2662.3,2662.0,1.81119306]
[1646524174612,0.00156744,2662.6,2662.1,0.93914]
[1646524174811,0.00156744,2662.7,2662.1,0.93914]
[1646524175012,2.88576744,2662.8,2662.1,0.93914]
[1646524175215,0.00156744,2662.8,2662.1,0.93914]
[1646524175419,1.54117157,2663.0,2662.7,0.87144685]
[1646524175616,1.53960413,2663.0,2662.7,2.03344685]
[1646524175918,1.53960413,2662.9,2662.7,2.03344685]
[1646524176120,0.003333,2663.0,2662.7,2.03344685]
[1646524176985,1.53956319,2663.1,2662.7,2.03344685]
[1646524177183,1.53956319,2663.1,2662.7,1.162]
[1646524177382,0.00345594,2663.0,2662.7,1.162]
[1646524178284,1.53956319,2663.1,2662.7,1.162]
[1646524178483,0.00345594,2663.0,2662.7,1.162]
[1646524178883,1.54301913,2663.0,2662.7,1.162]
[1646524179292,1.54168383,2663.0,2662.7,1.162]
[1646524179491,1.53956319,2663.0,2662.7,1.158602]
[1646524179789,1.54301913,2663.0,2662.7,1.158602]
[1646524180620,1.53956319,2663.0,2662.7,1.158602]
[1646524180819,1.54121884,2663.0,2662.6,1.03137363]
[1646524181818,1.53956319,2663.0,2662.6,1.03137363]
[1646524182018,0.00165565,2662.9,2662.6,1.03137363]
[1646524183019,1.53956319,2663.0,2662.6,1.03137363]
[1646524183226,0.00356932,2662.9,2662.6,1.03137363]
[1646524184260,1.53956319,2663.0,2662.6,1.03137363]
[1646524184460,1.54288363,2662.9,2662.6,1.03137363]
[1646524184661,0.00332044,2662.9,2662.6,1.03137363]
[1646524185462,1.53957558,2663.1,2662.6,1.03137363]
[1646524185670,0.00332044,2662.9,2662.6,1.03137363]
[1646524186665,1.53955544,2663.2,2662.6,1.03137363]
[1646524186870,0.00332044,2662.9,2662.6,1.03137363]
[1646524187767,1.53955544,2663.2,2662.6,1.03137363]
[1646524188023,0.00332044,2662.9,2662.6,1.03137363]
[1646524188417,0.00332044,2662.9,2662.7,8.92984995]
[1646524189015,1.53955544,2663.2,2662.7,8.92984995]
[1646524189216,0.00333721,2662.9,2662.7,8.92984995]
[1646524190015,0.00333721,2662.9,2662.8,5.06524476]
[1646524190216,1.53955544,2663.2,2662.8,5.06524476]
[1646524190417,1.53955544,2663.1,2662.9,5.06524476]
[1646524190619,1.53955544,2663.0,2662.9,5.06524476]
[1646524190820,1.53955544,2663.0,2662.9,5.06183976]
[1646524191024,5.04112288,2663.3,2662.9,5.06183976]
[1646524191221,1.53955544,2663.2,2662.9,5.06183976]
[1646524191421,1.53955544,2663.2,2663.0,1.17096767]
[1646524191623,0.00333702,2663.2,2663.1,4.89070855]
[1646524192266,1.54285173,2663.2,2663.1,4.89070855]
[1646524192668,1.53951471,2663.2,2663.1,4.89070855]
[1646524192868,1.53951471,2663.2,2663.1,3.24510485]
[1646524193068,5.03951471,2663.2,2663.1,3.24510485]
[1646524194268,6.08972351,2663.2,2663.1,3.24510485]
[1646524195169,17.53972351,2663.2,2663.1,3.24510485]
[1646524195369,6.08972351,2663.2,2663.1,3.24510485]
[1646524195619,6.08972351,2663.2,2662.8,5.06524476]
[1646524195821,1.53951471,2663.1,2662.8,5.06524476]
[1646524196018,3.5,2663.0,2662.8,5.06524476]
[1646524196223,1.53951471,2662.9,2662.8,5.06524476]
[1646524196619,1.53951471,2662.9,2662.5,1.16042534]
[1646524197020,3.5,2663.0,2662.5,1.16042534]
[1646524197223,1.53961776,2662.9,2662.5,1.16042534]
[1646524197623,3.5,2663.0,2662.5,1.16042534]
[1646524197822,0.00333617,2662.9,2662.5,1.16042534]
[1646524199023,0.00333621,2662.8,2662.5,1.16042534]
[1646524199668,0.00333621,2662.8,2662.1,3.4908]
[1646524199868,0.00333621,2662.8,2662.0,1.0]
[1646524200069,0.00156744,2662.8,2661.7,4.7015]
[1646524200270,0.00490365,2662.8,2661.7,4.7015]
[1646524200869,4.70895829,2662.8,2661.7,3.327]
[1646524201074,4.70895829,2662.8,2661.7,2.4533]
[1646524201270,1.53973787,2662.7,2661.6,1.6107]
[1646524201473,3.50156744,2662.6,2661.6,1.7985]
[1646524201670,3.50156744,2662.6,2661.6,1.62405019]
[1646524201871,3.50156744,2662.6,2661.6,0.38785019]
[1646524202069,4.98093793,2662.6,2661.6,0.38785019]
[1646524202372,4.98093793,2662.6,2661.6,0.3745]
[1646524202570,4.97937049,2662.6,2661.9,0.93797341]
[1646524202770,1.47937049,2662.6,2662.3,1.21312461]
[1646524203024,1.1635,2662.6,2662.3,1.21312461]
[1646524203213,0.00490331,2662.8,2662.3,1.21312461]
[1646524203413,0.00333587,2662.8,2662.3,1.21312461]
[1646524203614,1.53967368,2662.9,2662.3,1.21312461]
[1646524203816,0.0033361,2662.8,2662.3,1.21312461]
[1646524204021,0.0033361,2662.8,2662.4,3.5]
[1646524204217,0.0033361,2662.8,2662.3,1.21312461]
[1646524204619,0.0033361,2662.8,2662.4,3.5]
[1646524204816,0.00156744,2663.1,2662.8,1.16065171]
[1646524205017,1.48084754,2663.2,2662.8,1.16065171]
[1646524205215,1.4792801,2663.2,2662.8,1.16065171]
[1646524206224,0.00310779,2663.1,2662.8,1.16065171]
[1646524207165,1.4792801,2663.2,2662.8,1.16065171]
[1646524207465,0.00310782,2663.1,2662.8,1.16065171]
[1646524208268,1.4792801,2663.2,2662.8,1.16065171]
[1646524208666,0.00310782,2663.1,2662.8,1.16065171]
[1646524208867,1.54260512,2663.1,2662.8,1.16065171]
[1646524209668,1.4792801,2663.2,2662.2,4.5]
[1646524209870,0.00156744,2663.0,2662.2,4.5]
[1646524210070,0.00467526,2663.1,2662.2,4.5]
[1646524210721,0.00156744,2663.1,2662.2,4.5]
[1646524210924,0.00314458,2662.8,2662.2,4.5]
[1646524211123,0.00314458,2662.8,2662.6,1.0918736]
[1646524211923,1.5395339,2663.0,2662.6,1.0918736]
[1646524212223,0.00314457,2662.8,2662.6,1.0918736]
[1646524213225,1.53954431,2663.0,2662.6,1.0918736]
[1646524213526,0.00314457,2662.8,2662.6,1.0918736]
[1646524214370,1.48084754,2663.2,2662.6,1.0918736]
[1646524214567,0.00312495,2662.8,2662.6,1.0918736]
[1646524215571,1.53949856,2663.0,2662.6,1.0918736]
[1646524215773,0.00312495,2662.8,2662.6,1.0918736]
[1646524215972,0.00312495,2662.8,2662.7,3.5]
[1646524216372,0.00312495,2662.8,2662.7,4.5]
[1646524216571,0.00215414,2662.8,2662.7,3.5]
[1646524216773,0.00215414,2662.8,2662.7,4.5]
[1646524216975,0.00215414,2662.8,2662.7,3.5]
[1646524217171,0.00215414,2662.8,2662.7,4.5]
[1646524217571,0.00312492,2662.9,2662.7,4.5]
[1646524218218,1.53920736,2663.3,2662.7,4.5]
[1646524218415,0.00156744,2663.6,2662.7,4.5]
[1646524218615,1.54076525,2663.6,2662.7,4.5]
[1646524218822,1.44076525,2663.6,2662.7,4.5]
[1646524219016,0.00156804,2663.5,2663.3,0.9245107]
[1646524219218,1.67751414,2664.0,2663.3,0.9245107]
[1646524219219,0.00156804,2663.6,2663.3,0.9245107]
[1646524219420,0.1877,2663.8,2663.3,0.9245107]
[1646524220725,0.00356625,2663.7,2663.3,0.9211067]
[1646524221523,0.1877,2663.8,2663.3,0.9211067]
[1646524221787,0.00356629,2663.6,2663.3,0.9211067]
[1646524222785,7.50976801,2663.9,2663.3,0.9177027]
[1646524222987,0.00356632,2663.6,2663.3,0.9177027]
[1646524223988,7.50976801,2663.9,2663.3,0.9177027]
[1646524224195,0.00356632,2663.6,2663.3,0.9177027]
[1646524225192,0.00156804,2663.9,2663.3,0.9177027]
[1646524225529,0.00356632,2663.6,2663.3,1.8051027]
[1646524226327,3.55346804,2664.1,2663.3,1.8051027]
[1646524226527,3.55346804,2664.1,2663.8,1.17899675]
[1646524226727,2.3555,2664.1,2663.8,1.17899675]
[1646524226932,0.18926804,2664.3,2663.8,1.17899675]
[1646524227128,0.1877,2664.3,2663.8,1.17899675]
[1646524227333,2.35252853,2664.4,2663.8,1.17899675]
[1646524227530,1.66659078,2664.4,2663.8,1.17899675]
[1646524227929,0.00356589,2664.2,2663.8,1.17899675]
[1646524228730,0.1875,2664.3,2663.8,1.17899675]
[1646524229031,0.00356593,2664.1,2663.8,1.17899675]
[1646524229973,4.09845833,2664.2,2663.8,1.17899675]
[1646524230167,0.00356596,2664.1,2663.8,1.17899675]
[1646524231171,4.09845833,2664.2,2663.8,1.17899675]
[1646524231371,0.00356596,2664.1,2663.8,1.17899675]
[1646524232173,0.00356596,2664.1,2663.5,1.0]
[1646524232376,0.00156804,2664.3,2663.3,2.149]
[1646524232577,0.00356596,2664.1,2663.3,2.149]
[1646524232773,0.00356596,2664.1,2663.3,1.149]
[1646524233615,16.79296963,2664.3,2663.5,0.92799294]
[1646524233815,0.00356614,2663.8,2663.5,0.92799294]
[1646524234817,0.00156804,2664.1,2663.5,0.92799294]
[1646524235016,0.00356618,2663.8,2663.5,0.92799294]
[1646524236020,4.08882116,2664.2,2663.5,0.92799294]
[1646524236223,0.00344582,2663.8,2663.3,1.149]
[1646524237273,4.08882116,2664.2,2663.5,0.93866]
[1646524237471,0.00344589,2663.7,2663.6,1.22741905]
[1646524238471,0.00156804,2664.1,2664.0,1.1575859]
[1646524238671,4.08882116,2664.2,2664.0,1.1575859]
[1646524238873,1.53894105,2664.1,2664.0,1.1575859]
[1646524240525,1.52652837,2664.1,2664.0,1.1575859]
[1646524242821,0.00332519,2664.2,2664.0,1.1575859]
[1646524243220,1.47909078,2664.4,2664.0,1.1575859]
[1646524243621,0.00333327,2664.2,2664.0,1.1575859]
[1646524244473,1.47909078,2664.4,2664.0,1.1575859]
[1646524244669,0.00333327,2664.2,2664.0,1.1575859]
[1646524245678,1.47909078,2664.4,2664.0,1.1575859]
[1646524245876,0.00333272,2664.2,2664.0,1.1575859]
[1646524246778,0.00156804,2664.6,2664.1,3.5]
[1646524246977,0.03859816,2664.7,2664.1,4.4026]
[1646524247177,0.00333272,2664.2,2664.1,5.4026]
[1646524248030,0.03703012,2664.7,2664.1,5.4026]
[1646524248227,0.03703012,2664.7,2664.5,1.03166388]
[1646524249426,0.04036253,2664.7,2664.5,1.03166388]
[1646524249826,0.04036253,2664.7,2664.5,1.01934945]
[1646524250431,0.03703012,2664.7,2664.5,1.01934945]
[1646524250631,0.04036257,2664.7,2664.5,1.01934945]
[1646524252865,0.03703012,2664.7,2664.1,5.4026]
[1646524253067,0.04036257,2664.7,2664.1,4.5]
[1646524254068,0.04036257,2664.7,2664.5,0.92719337]
[1646524254069,0.03703012,2664.7,2664.5,0.92719337]
[1646524255631,0.04036255,2664.7,2664.5,0.92719337]
[1646524256423,0.03703012,2664.7,2664.5,0.92719337]
[1646524256623,0.04036255,2664.7,2664.5,0.92719337]
[1646524257625,0.03703012,2664.7,2664.5,0.92719337]
[1646524257826,0.04036255,2664.7,2664.5,0.92719337]
[1646524258726,0.03703012,2664.7,2664.5,0.92719337]
[1646524259127,0.04036255,2664.7,2664.5,0.92719337]
[1646524259975,0.03703012,2664.7,2664.5,0.92719337]
[1646524260375,0.04036255,2664.7,2664.5,0.92719337]
[1646524261276,0.03703012,2664.7,2664.5,0.92719337]
[1646524261477,0.04036255,2664.7,2664.5,0.92719337]
[1646524262479,0.03703012,2664.7,2664.5,0.92719337]
[1646524262777,0.04036255,2664.7,2664.5,0.92719337]
[1646524263622,0.03703012,2664.7,2664.5,0.92719337]
[1646524263820,0.04036255,2664.7,2664.5,0.92719337]
[1646524264821,0.03703012,2664.7,2664.5,0.92719337]
[1646524265022,0.04036255,2664.7,2664.5,0.92719337]
[1646524265428,0.04036255,2664.7,2664.3,0.93838]
[1646524266028,0.03703012,2664.7,2664.3,0.93838]
[1646524266232,0.0033325,2664.6,2664.3,0.93838]
[1646524266872,0.0033325,2664.6,2664.4,1.08427731]
[1646524267273,0.03703012,2664.7,2664.4,1.08427731]
[1646524267470,0.0033325,2664.6,2664.4,1.08427731]
[1646524268374,0.03703012,2664.7,2664.4,1.08427731]
[1646524268775,0.0033325,2664.6,2664.4,1.08427731]
[1646524269575,0.03703012,2664.7,2664.4,1.08427731]
[1646524269975,0.00224611,2664.6,2664.4,1.08427731]
[1646524270830,0.03703012,2664.7,2664.4,1.08427731]
[1646524272329,0.04036259,2664.7,2664.4,1.08427731]
[1646524273329,0.03703012,2664.7,2664.4,1.03427731]
[1646524273531,0.04036259,2664.7,2664.4,1.03427731]
[1646524273936,0.04036259,2664.7,2664.4,4.4910735]
[1646524274131,0.04036259,2664.7,2664.4,5.4910735]
[1646524274374,0.00156804,2665.2,2664.6,1.87635]
[1646524274576,0.10643676,2665.3,2664.9,0.3745]
[1646524274773,0.01332732,2665.2,2664.9,0.3745]
[1646524275271,0.01332732,2665.2,2665.0,1.21528851]
[1646524275472,0.01332732,2665.2,2665.1,1.87599]
[1646524275678,0.10486872,2665.3,2665.1,1.87599]
[1646524275875,0.03765156,2665.7,2665.1,1.87599]
[1646524276777,0.03765156,2665.7,2665.1,2.41599]
[1646524277177,0.00165061,2665.5,2665.1,2.41599]
[1646524277377,0.00165061,2665.5,2665.1,5.87775422]
[1646524277775,0.00165061,2665.5,2665.1,3.41599]
[1646524278033,0.03765156,2665.7,2665.1,3.79049]
[1646524281970,0.00356226,2665.5,2665.1,3.79049]
[1646524282374,0.00356226,2665.5,2665.4,0.87467363]
[1646524282774,0.03765156,2665.7,2664.8,2.17067]
[1646524282979,14.9392196,2665.9,2664.8,1.2325]
[1646524283177,0.00356223,2665.6,2664.8,1.2325]
[1646524283673,0.00356223,2665.6,2664.6,1.0]
[1646524284077,0.88868832,2665.3,2664.6,1.992633]
[1646524284275,0.0034556,2665.2,2664.6,0.992633]
[1646524284873,0.0034556,2665.2,2664.7,0.93823]
[1646524285273,2.4003,2665.7,2664.7,0.93823]
[1646524285536,0.0034557,2665.1,2664.7,0.93823]
[1646524285724,0.0034557,2665.1,2664.8,0.54]
[1646524286329,0.0034557,2665.1,2665.0,0.93913965]
[1646524286527,0.00155538,2665.7,2665.0,0.93913965]
[1646524286729,0.0034557,2665.1,2665.0,0.93913965]
[1646524287626,1.16945538,2665.8,2665.0,4.43913965]
[1646524287827,1.16945538,2665.8,2665.4,1.0222671]
[1646524288028,2.49383672,2666.0,2665.4,1.0222671]
[1646524288029,0.01328137,2665.6,2665.4,1.0222671]
[1646524288427,0.01328137,2665.6,2665.0,2.2403]
[1646524288628,0.01328137,2665.6,2665.0,1.2403]
[1646524288830,0.00155538,2665.9,2665.0,1.2403]
[1646524289377,0.00332068,2665.4,2665.0,1.2403]
[1646524289569,0.00332068,2665.4,2665.3,1.12189707]
[1646524289971,0.00155538,2665.9,2665.3,1.12189707]
[1646524290172,2.49383672,2666.0,2665.3,1.12189707]
[1646524290372,0.00332065,2665.5,2665.3,1.12189707]
[1646524291174,0.00155538,2665.9,2665.3,1.12189707]
[1646524291374,1.47857785,2666.0,2665.3,1.12189707]
[1646524291575,0.00332971,2665.5,2665.3,1.12189707]
[1646524291979,0.00332971,2665.5,2665.1,1.0]
[1646524292375,0.00332971,2665.5,2665.0,1.2403]
[1646524292576,0.01487222,2665.9,2665.0,1.2403]
[1646524292577,0.00155538,2665.9,2665.0,1.2403]
[1646524292778,0.00332977,2665.4,2665.0,1.2403]
[1646524293623,0.99888465,2665.6,2665.0,1.2403]
[1646524294022,0.00320864,2665.3,2664.9,0.91963102]
[1646524294822,0.00155538,2665.5,2664.9,0.91963102]
[1646524295022,0.00320809,2665.2,2664.9,0.91963102]
[1646524296030,0.00155538,2665.5,2664.9,0.91963102]
[1646524296231,0.99888465,2665.6,2664.9,0.91963102]
[1646524296432,0.00320812,2665.2,2664.9,0.91963102]
[1646524297277,0.00155538,2665.8,2664.9,0.91963102]
[1646524297474,0.00332932,2665.2,2664.9,0.91963102]
[1646524298476,0.00155538,2665.6,2664.9,0.91963102]
[1646524298676,0.00333345,2665.2,2664.9,0.91963102]
[1646524299077,0.94161827,2665.7,2664.9,0.91963102]
[1646524301128,0.00319065,2665.7,2664.9,0.91963102]
[1646524301329,0.00163527,2665.7,2664.9,0.91963102]
[1646524301533,0.00163527,2665.7,2665.1,0.93807]
[1646524301929,0.00155538,2665.8,2665.1,0.93807]
[1646524302131,0.00155538,2665.8,2665.0,1.0]
[1646524302334,0.003562,2665.7,2665.0,0.00356295]
[1646524303329,1.07459727,2665.8,2664.9,0.91963102]
[1646524303529,0.00356197,2665.7,2665.0,0.00356292]
[1646524304373,1.07459727,2665.8,2664.9,0.91963102]
[1646524304774,0.00356197,2665.7,2665.0,0.00356292]
[1646524305579,1.07459727,2665.8,2664.9,1.91963102]
[1646524305779,1.07459727,2665.8,2664.9,0.91963102]
[1646524305979,0.00356197,2665.7,2665.0,0.00356292]
[1646524306782,1.07459727,2665.8,2664.9,0.91963102]
[1646524307183,0.00344175,2665.7,2665.0,0.00344267]
[1646524308126,1.07459727,2665.8,2664.9,0.91963102]
[1646524308327,0.00344175,2665.7,2665.0,0.00344267]
[1646524309325,1.07459727,2665.8,2664.9,0.91963102]
[1646524309524,0.00344175,2665.7,2665.3,1.0383967]
[1646524310634,1.1489,2665.9,2665.3,1.0383967]
[1646524310828,0.0033209,2665.7,2665.3,1.0383967]
[1646524311629,1.1489,2665.9,2665.4,3.5]
[1646524311871,1.1489,2665.9,2665.4,4.5]
[1646524311872,0.0033209,2665.7,2665.4,4.5]
[1646524312270,0.0033209,2665.7,2665.4,1.0]
[1646524312870,1.1489,2665.9,2665.3,1.0383967]
[1646524313072,0.00332093,2665.7,2665.3,1.0383967]
[1646524313671,0.00332093,2665.7,2665.4,3.5]
[1646524314071,1.1489,2665.9,2665.4,4.5]
[1646524314274,0.00332909,2665.7,2665.4,4.5]
[1646524314472,0.00332909,2665.7,2665.4,1.0]
[1646524314973,0.00332909,2665.7,2665.3,1.0383967]
[1646524315173,1.15045538,2665.9,2665.3,1.0383967]
[1646524315374,1.1489,2665.9,2665.3,1.0383967]